Cogmind - Beta 10.1 @@@ ROGUE MODE // 2020.10.13 @ 16:29:27 Player: Shmoo Result: Destroyed by G-47 Trooper with Particle Gun Performance ------------- Evolutions (0) 0 Regions Visited (1) 200 Robots Destroyed (18) 90 Value Destroyed (330) 330 Prototype IDs (0) 0 Alien Tech Used (0) 0 Bonus (0) 0 TOTAL SCORE: 620 Bonus ------- None Cogmind --------- Core Integrity 0/250 Matter 333/450 Energy 125/125 System Corruption 0% Temperature Cool (222) Movement Core (400) Ox7 Location -10/Materials Parts ------- > --- POWER (1) -------- Light Ion Engine > --- PROPULSION (2) --- (None) > --- UTILITY (2) ------ Large Storage Unit Large Matter Pod > --- WEAPON (2) ------- Medium Laser > --- INVENTORY (10) --- Light Ion Engine Light Ion Engine Improved Heat Sink Light Armor Plating Peak State ------------ > --- POWER ------------ Light Ion Engine > --- PROPULSION ------- Aluminum Leg Aluminum Leg > --- UTILITY ---------- Improved Heat Sink Large Matter Pod > --- WEAPON ----------- Medium Laser Light Cannon > --- INVENTORY -------- Light Ion Engine Wheel Medium Laser [Rating: 9] Favorites ----------- Power Light Ion Engine Engine Light Ion Engine Propulsion Aluminum Leg Leg Aluminum Leg Hover Unit Hover Unit Utility Large Matter Pod Device Improved Heat Sink Storage Large Matter Pod Weapon Medium Laser Energy Gun Medium Laser Ballistic Cannon Light Cannon Special Weapon Welding Torch Build | -11 -10 ------- Run | Scr Mat Slots Evolved . | . . Power . | . . Propulsion . | . . Utility . | . . Weapon . | . . Parts Attached 15 | 5 10 Power 3 | 1 2 Engine 3 | 1 2 Core . | . . Reactor . | . . Propulsion 4 | 2 2 Treads . | . . Leg 2 | 2 . Wheel . | . . Hover 2 | . 2 Flight . | . . Utility 3 | . 3 Device 1 | . 1 Storage 2 | . 2 Processor . | . . Hackware . | . . Protection . | . . Artifact . | . . Weapon 5 | 2 3 Energy Gun 3 | 2 1 Energy Cannon . | . . Ballistic Gun . | . . Ballistic Cannon 1 | . 1 Launcher . | . . Special Weapon 1 | . 1 Impact Weapon . | . . Slashing Weapon . | . . Piercing Weapon . | . . Special Melee Weapon . | . . Unidentified Prototypes . | . . Parts Lost 3 | . 3 Power . | . . Propulsion 2 | . 2 Utility . | . . Weapon 1 | . 1 Highest Loss Streak 2 | . 2 Average Slot Usage (%) 74 | . 74 Engine 14 | . 14 Leg 8 | . 8 Hover 8 | . 8 Device 4 | . 4 Storage 19 | . 19 Energy Gun 14 | . 14 Ballistic Cannon 5 | . 5 Naked Turns . | . . Heaviest Build 24 | 6 24 Greatest Support 20 | 20 20 Greatest Overweight (x) 3 | . 3 Average Overweight (x) 1 | . 1 Largest Inventory Capacity 10 | 4 10 Average Capacity 6 | 4 7 Most Carried 5 | 4 5 Average Carried 3 | 3 3 Final Capacity 10 | 4 10 Final Carried 4 | 4 4 Class Distribution -------------------- 100% | Mutant Dominant Class ---------------- Mutant | -10/Materials Resources | -11 -10 ----------- Run | Scr Mat Matter Collected 540 | 250 290 Remotely . | . . Salvage Created 445 | 62 383 Parts 36 | 3 33 Haulers Intercepted . | . . Recyclers Shooed 1 | . 1 Parts Field Recycled . | . . Retrieved Matter . | . . Parts Self-Destructed . | . . Prevented . | . . Kills | -11 -10 ------- Run | Scr Mat Combat Hostiles Destroyed 7 | 1 6 Guns 3 | 1 2 Cannons 4 | . 4 Classes Destroyed 5 | 2 3 Worker 5 | 1 4 Builder 2 | . 2 Recycler 1 | . 1 Watcher 3 | . 3 Grunt 7 | 1 6 Best Kill Streak 5 | 1 5 Combat Bots Only 2 | 1 2 Max Kills in Single Turn 1 | 1 1 Gunslinging . | . . Exploded . | . . Melee . | . . Uniques/NPCs Destroyed . | . . Combat | -11 -10 -------- Run | Scr Mat Damage Taken 644 | 56 588 Core 259 | 24 235 Absorbed by Shields . | . . Core Remaining (%) 90 | 90 . Volleys Fired 65 | 10 55 Largest 2 | 2 2 Hottest 90 | 90 85 Shots Fired 106 | 20 86 Gun 63 | 20 43 Cannon 43 | . 43 Launcher . | . . Special . | . . Kinetic 43 | . 43 Thermal 63 | 20 43 Explosive . | . . Electromagnetic . | . . Robot Hit Streak 10 | 10 8 Robot Miss Streak 3 | 2 3 Penetration Max . | . . Secondary Targets . | . . Shots Hit Robots 76 | 16 60 Core Hits 26 | 3 23 Critical Hits 1 | . 1 Critical Kills 1 | . 1 Critical Parts Destroyed . | . . Melee Attacks . | . . Impact . | . . Slashing . | . . Piercing . | . . Sneak Attacks . | . . Combat Hostiles . | . . Follow-up Attacks . | . . Damage Inflicted 1037 | 208 829 Guns 608 | 208 400 Cannons 429 | . 429 Explosions . | . . Melee . | . . Ramming . | . . Kinetic 429 | . 429 Thermal 608 | 208 400 Explosive . | . . Electromagnetic . | . . Impact . | . . Slashing . | . . Piercing . | . . Highest Corruption . | . . Average Corruption . | . . Corruption Purged . | . . Overload Shots . | . . Overflow Damage . | . . Projectiles . | . . Explosions . | . . Melee . | . . Knockbacks 2 | . 2 Impact . | . . Kinetic 2 | . 2 Secondary . | . . Self-Inflicted Damage . | . . Shots . | . . Rammed . | . . Targets Rammed . | . . Kicked . | . . Crushed . | . . Highest Temperature 224 | 224 213 Average Temperature 75 | 95 64 Received Heat Transfer 360 | 30 330 Siege Activations . | . . Robots Corrupted . | . . Combat Hostiles . | . . Parts Fried . | . . Impact Corruptions . | . . Robots Melted . | . . Combat Hostiles . | . . Parts Melted 4 | 3 1 Heat Transferred 1742 | 558 1184 Parts Sabotaged . | . . Parts Stolen . | . . Parts Stripped . | . . Power Chain Reactions . | . . Missiles Intercepted . | . . Alert | -11 -10 ------- Run | Scr Mat Peak Influence 232 | 25 232 Initial 16 | . 16 Average 78 | 7 92 Maximum Alert Level 1 | . 1 Low Security (%) 87 | 100 84 Level 1 12 | . 15 Level 2 . | . . Level 3 . | . . Level 4 . | . . Level 5 . | . . High Security . | . . Max Security . | . . Squads Dispatched 2 | . 2 Investigation 1 | . 1 Extermination . | . . Reinforcement 1 | . 1 Assault . | . . Garrison . | . . Intercept . | . . Construction Impeded . | . . Haulers Reinforced . | . . Stealth | -11 -10 --------- Run | Scr Mat Distress Signals 1 | . 1 Communications Jammed . | . . Distress Signals . | . . Times Spotted 15 | 1 14 Peak Tracking Total 4 | 1 4 Tactical Retreats 1 | . 1 Traps | -11 -10 ------- Run | Scr Mat Traps Triggered 1 | . 1 Indirectly . | . . Trap Hack Attempts . | . . Triggered . | . . Disarmed . | . . Reprogrammed . | . . Reused . | . . Traps Extracted . | . . Installed . | . . Triggered . | . . Machines | -11 -10 ---------- Run | Scr Mat Machines Disabled 1 | . 1 Max in Single Turn 1 | . 1 Machines Sabotaged . | . . Garrisons Compromised . | . . Overloaded Fab Kills . | . . Fab Network Shutdowns . | . . Hacking | -11 -10 --------- Run | Scr Mat Machines Accessed 2 | . 2 Terminals 2 | . 2 Fabricators . | . . Repair Stations . | . . Recycling Units . | . . Scanalyzers . | . . Garrison Access . | . . Total Hacks 8 | . 8 Successful 7 | . 7 Failed 1 | . 1 Catastrophic . | . . Database Lockouts . | . . Manual 1 | . 1 Terminals 8 | . 8 Fabricators . | . . Repair Stations . | . . Recycling Units . | . . Scanalyzers . | . . Garrison Access . | . . Terminal Hacks 7 | . 7 Record 3 | . 3 Robot Analysis 1 | . 1 Locate Traps 1 | . 1 Dispatch Records 1 | . 1 Investigation Status 1 | . 1 Fabricator Hacks . | . . Repair Station Hacks . | . . Recycling Unit Hacks . | . . Scanalyzer . | . . Garrison Access Hacks . | . . Unauthorized Hacks . | . . Terminals . | . . Fabricators . | . . Repair Stations . | . . Recycling Units . | . . Scanalyzers . | . . Garrison Access . | . . Data Cores Recovered . | . . Used . | . . Hacking Detections 2 | . 2 Full Trace Events 2 | . 2 Feedback Events . | . . Feedback Blocked . | . . Robot Schematics Acquired . | . . Robots Built . | . . Matter . | . . Time . | . . Total Robot Build Rating . | . . Part Schematics Acquired . | . . Parts Built . | . . Matter . | . . Time . | . . Total Part Build Rating . | . . Parts Repaired . | . . Time . | . . Parts Recycled . | . . Recycled Matter . | . . Retrieved Matter . | . . Retrieved Components . | . . Parts Scanalyzed . | . . Part Schematics Acquired . | . . Parts Damaged . | . . Bothacking | -11 -10 ------------ Run | Scr Mat Used RIF Installer . | . . Robots Hacked . | . . Non-combat . | . . Combat . | . . Robot Hacks Applied . | . . Relay Couplers Released . | . . Robots Rewired . | . . Allies Hacked . | . . Hacks Repelled . | . . Allies | -11 -10 -------- Run | Scr Mat Total Allies . | . . Largest Group . | . . Highest-Rated Group . | . . Highest-Rated Ally . | . . Total Orders . | . . Ally Attacks . | . . Total Damage . | . . Kills . | . . Allies Corrupted . | . . Allies Melted . | . . Intel | -11 -10 ------- Run | Scr Mat Robot Analysis Total 1 | . 1 Derelict Logs Recovered . | . . Drone Launches . | . . Drone Recoveries . | . . Exploration | -11 -10 ------------- Run | Scr Mat Turns Passed 897 | 145 752 Spaces Moved 420 | 97 323 Core 50 | 24 26 Treads . | . . Legs 188 | 73 115 Wheels . | . . Hover 182 | . 182 Flight . | . . Fastest Speed 50 | 50 120 Average Speed 161 | 102 179 Slowest Speed 240 | 120 240 Overloaded Moves . | . . Propulsion Burnouts . | . . Robots Hopped . | . . Cave-ins Triggered . | . . Exploration Rate (%) 25 | 7 43 Regions Visited 1 Branch Regions . Pre-discovered Areas . | . . Known Exits Taken . | . . Unknown Exits Taken 1 | 1 . Scrap Searched . | . . Spaces Dug . | . . Terrain Destroyed . | . . Melee . | . . Projectile . | . . AOE . | . . Terrain Rammed . | . . Walls Destroyed . | . . Machines Disabled . | . . Actions | -11 -10 --------- Run | Scr Mat Total 537 | 122 415 Wait 6 | 2 4 Move 419 | 96 323 Hop . | . . Pick Up 21 | 9 12 Fast Attach . | . . Attach 14 | 5 9 Detach 1 | . 1 Swap 1 | . 1 Drop 10 | . 10 Fire 65 | 10 55 Melee . | . . Ram . | . . Kick . | . . Crush . | . . Escape Stasis . | . . Rewire . | . . Trap . | . . Miscellaneous . | . . Route ------- -11/Scrapyard -10/Materials (discovered 2 exits: [*Mat x2]) History --------- Turn | Location | Event 2 | -11/Scrapyard | Met Revision 17 87 | -11/Scrapyard | Discovered new exit (range 8) 146 | -11/Scrapyard | Entered Materials 301 | -10/Materials | Build established: Mutant 434 | -10/Materials | Core integrity fell below 50% 447 | -10/Materials | Discovered new exit (range 15) 798 | -10/Materials | Discovered new exit (range 11) 890 | -10/Materials | Core integrity fell below 20% 898 | -10/Materials | Destroyed by G-47 Trooper with Particle Gun Last Messages --------------- can break down almost any form of debris into reusable matter. As K-01 Serfs are extremely cheap to produce and perform no vital function, despite their size they are among the weakest robot designs with the most exposed core. >>Enumerate(Squads) Retrieving dispatch records... Found 5 active squads: 3x Patrol 2x Transport >>Enumerate(Investigations) Retrieving latest reported positions... No active investigation squads found. ALERT: Hostiles spotted, dispatching reinforcements to Terminal M005. [Achievement: Uninvited Guest] G-34 Mercenary destroyed. Hover Unit destroyed. G-47 Trooper heat short circuits Imp. Heat Sink. G-47 Trooper overheating. G-47 Trooper heat damages Particle Gun. [Achievement: First Step to Greatness] Map ----- +----------------------------------------------------+ | ????????????+ [ #??????????? | | ????????????# ### ###T# #??????????? | | ????????????### ##### #?# #?### #??????????? | | ????????????????????## ##?#+###?# #??????????? | | ?????????????????????# =# #?# #??????????? | | ?????????????????????+ + #?# #??????????? | | ?????????????????????# !# #?# #??????????? | | ?????????????????????# #?? #?# #??????????? | | ?????????????????????# %#???? #?# #??????????? | | ?????????????????????# #??????#?#! =#??????????? | | ?????????????????????# #????????# #??????????? | | ??????????????????#### #????????# #??????????? | | ??????????????????+ #????????# #??????????? | | ??????????????????#####+########### #??????????? | | ??????????????????# | * *= + ! !#??????????? | | ??????????????????# = """=#########+#####???????? | | ??????????????????# =""" #????# #???????? | | ??????????????????# """ #????# """ #???????? | | ??????????????????# """ #????# """ #???????? | | ??????????????????# """ #????# """ #???????? | | ??????????????????# #????# #???##### | | ??????????????????# = #????# """ ##### | | ??????????????????# =%! #????# """ / =|!= | | ????????????????#########g##????# """ ##### | | ????????????????# T #%#?????# #??####+# | | ????????????????# #@#?????##########??# | | ????????????????# # #??####### #??# | | ????????????????# """ #g#### # "" #??# | | ????????????????# """ # # T" #??#!! | | ????????????????# """ + + "" #??# | | ????????????????# # g # #??# | | ????????????????# """ ###### # #??###### | | ????????????????# """ #????## ## """ #???????? | | ????????????????# """ #?????# ## """ #???????? | | ????????????????# #?????+ ## """ #???????? | | ????????????????#########?????# ## #???????? | | ??????????????????????????????#^^^## #???????? | | ??????????????????????????????# ## #???????? | | ??????????????????????????????# ########???????? | | ??????????????????????????????# #??????????????? | | ??????????????????????????????# < #??????????????? | | ??????????????????????????????# #??????????????? | | ??????????????????????????????#####??????????????? | | ?????????????????????????????????????????????????? | | ?????????????????????????????????????????????????? | | ?????????????????????????????????????????????????? | | ?????????????????????????????????????????????????? | | ?????????????????????????????????????????????????? | | ?????????????????????????????????????????????????? | | | +----------------------------------------------------+ Best States ------------- Heat Dissipation 39 Energy Generation 10 Energy Capacity 125 Matter Stores 361 Matter Capacity 450 Sight Range 16 Terrain Scan Density 10 Evasion (%) 50 Item Schematics ----------------- None Robot Schematics ------------------ None Fabricated ------------ Nothing Alien Tech Used ----------------- None Achievements -------------- Crack Shot First Step to Greatness Uninvited Guest Challenges ------------ None Game ------ Seed DisposableAerolevFilter Manual? 0 Play Time 00:30:17 Cumulative 0.9 hours Start 2020.10.13 @ 15:47:10 End 2020.10.13 @ 16:29:27 Sessions 1 Manual Loads 0 Difficulty Rogue Special Mode None Game No. 2 Rogue 2 Adventurer 0 Explorer 0 Win Type - Total 0 Types 0/0/0/0/0/0/0/0/0 Lore% 0 Gallery% 1 Achievement% 1 Wizard Run 0 Options --------- ASCII 0 Keyboard 0 Movement Mouse Keybinds 0 Fullscreen 1 Font 18/X11Bold Map View 76x50 Tactical HUD 0 Map Filters NONE Filters NONE Steam 1 RUN: 9182affe-ce4c-4d03-b6a7-7fe2b03b9db7